fUSD/lending_fUSD_20240428
["ID","MTS","AMOUNT","RATE_DAILY","PERIOD"]
[323778241,1714285839216,-333.123228,0.00018321,2]
[323778242,1714285839226,-12406.294931,0.00018321,2]
[323778243,1714285839235,-3413.970792,0.00018321,2]
[323778244,1714285839245,-253.811402,0.00018321,2]
[323778245,1714285839254,-36244.259249,0.00018321,2]
[323778246,1714285839265,-706.17,0.00018343,2]
[323778247,1714285839274,-14422.05773396,0.00018345,2]
[323778248,1714285839283,-484.771344,0.00018544,2]
[323778249,1714285839292,-333.123228,0.00018544,2]
[323778250,1714285839302,-6604.8329772,0.00018544,2]
[323778251,1714285839315,-5801.4619538,0.00018544,2]
[323778252,1714285839324,-3413.970792,0.00018544,2]
[323778253,1714285839335,-253.811402,0.00018544,2]
[323778254,1714285839346,-11346.7288107,0.00018544,2]
[323778255,1714285839357,-1456.87646204,0.00018544,2]
[323778256,1714285839370,-7076.96488765,0.00018544,2]
[323778257,1714285839381,-16363.68908861,0.00018544,2]
[323778258,1714285839390,-14422.05773396,0.00018692,2]
[323778259,1714285839399,-484.771344,0.00018768,2]
[323778260,1714285839408,-333.123228,0.00018768,2]
[323778261,1714285839417,-1926.50537452,0.00018768,2]
[323778262,1714285839429,-10479.78955648,0.00018768,2]
[323778263,1714285839438,-3413.970792,0.00018768,2]
[323778264,1714285839448,-253.811402,0.00018768,2]
[323778265,1714285839457,-19825.81516207,0.00018768,2]
[323778266,1714285840469,-773.3429493,0.00018768,2]
[323778267,1714285840514,-668.87821,0.00018768,2]
[323778268,1714285840642,-1905.14387475,0.00018768,2]
[323778283,1714285842743,-167.36990592,0.0001788,2]
[323778284,1714285842753,-1494.37158908,0.00018768,2]
[323778285,1714285843014,-11576.7074638,0.00018768,2]
[323778286,1714285843024,-272.13029046,0.00018978,2]
[323778287,1714285843034,-218.0,0.00019,2]
[323778288,1714285843043,-14135.14624573,0.00019039,2]
[323778289,1714285843056,-286.91148823,0.00019039,2]
[323778290,1714285843068,-165.15,0.00019041,2]
[323778291,1714285843077,-350.84,0.00019041,2]
[323778292,1714285843087,-152.62,0.00019041,2]
[323778293,1714285843097,-251.28,0.00019041,2]
[323778294,1714285843106,-405.71984152,0.00019078,2]
[323778295,1714285843115,-882.45119168,0.00019078,2]
[323778296,1714285843125,-181.16463082,0.00019078,2]
[323778297,1714285843134,-275.44544182,0.00019078,2]
[323778298,1714285843143,-180.33018702,0.00019078,2]
[323778299,1714285843152,-177.18201028,0.0001915,2]
[323778300,1714285843165,-3528.26702556,0.00019176,2]
[323778301,1714285843175,-19482.63818295,0.00019177,2]
[323778305,1714285845969,-947.3,0.00018247,2]
[323778306,1714285845979,-52.7,0.00018247,2]
[323778307,1714285845996,-247.3,0.00018247,2]
[323778308,1714285846005,-416.499999,0.00018247,2]
[323778309,1714285846041,-627.310001,0.00018247,2]
[323778310,1714285846051,-201.59,0.00018247,2]
[323778311,1714285846060,-303.37,0.00018247,2]
[323778312,1714285846069,-325.49,0.00018247,2]
[323778313,1714285846078,-300.0,0.00018247,2]
[323778314,1714285846087,-194.49480945,0.00018767,2]
[323778316,1714285846096,-9242.41000233,0.00019177,2]
[323778323,1714286807912,707.33,0.00011,2]
[323778325,1714286834647,10000.0,0.000251,120]
[323778329,1714286873650,2975.92,0.0002,60]
[323778377,1714287032033,-251.74141407,0.00014267,2]
[323778378,1714287032043,-363.42106083,0.00014268,2]
[323778379,1714287032052,-370.19548805,0.00014268,2]
[323778380,1714287032062,-155.0,0.00014268,2]
[323778381,1714287032071,-706.86968625,0.00014268,2]
[323778382,1714287032080,-200.40599956,0.00014268,2]
[323778383,1714287032090,-72.65749565,0.00014269,2]
[323778384,1714287032146,-393.9,0.00014269,2]
[323778385,1714287032158,-885.70498938,0.00014269,2]
[323778386,1714287032167,-194.49480945,0.00014269,2]
[323778387,1714287032179,-349.03,0.00014274,2]
[323778388,1714287032189,-2937.41733403,0.00014307,2]
[323778389,1714287032199,-150.0,0.0001431,2]
[323778390,1714287032208,-6164.64238517,0.000149,2]
[323778391,1714287032217,-2542.32800445,0.00015,2]
[323778392,1714287032226,-169.2,0.00016053,10]
[323778393,1714287032236,-150.0,0.00016077,2]
[323778394,1714287032245,-4188.88649284,0.00016081,2]
[323778395,1714287032258,-2001.76069057,0.00016081,2]
[323778396,1714287032269,-3287.60560869,0.00016081,2]
[323778397,1714287032306,-4799.4,0.00016081,2]
[323778398,1714287032396,-4363.90374993,0.00016081,2]
[323778399,1714287032409,-4836.15345797,0.00016081,2]
[323778400,1714287032419,-477.76,0.00016083,2]
[323778401,1714287032428,-500.0,0.00016086,2]
[323778402,1714287032437,-245.18,0.00016086,2]
[323778403,1714287032447,-952.7,0.00016177,2]
[323778404,1714287032456,-200.0,0.00016186,2]
[323778406,1714287032466,-8211.99,0.000162,2]
[323778408,1714287032475,-9779.61,0.00016223,2]
[323778410,1714287032484,-166.93,0.00016252,2]
[323778412,1714287032493,-169.14,0.00016265,2]
[323778414,1714287032502,-500.0,0.00016266,2]
[323778416,1714287032511,-250.0,0.000163,2]
[323778418,1714287032520,-2202.9,0.00016314,2]
[323778420,1714287032529,-250.0,0.00016342,2]
[323778421,1714287032538,-150.0,0.00016384,2]
[323778422,1714287032547,-1000.0,0.00016402,2]
[323778423,1714287032556,-499.99,0.00016438,2]
[323778424,1714287032566,-150.0,0.00016446,2]
[323778425,1714287032575,-349.03,0.00016538,2]
[323778426,1714287032584,-160.7,0.00016558,2]
[323778427,1714287032593,-172.27,0.000166,2]
[323778428,1714287032602,-150.0,0.00016618,2]
[323778429,1714287032611,-166.37612335,0.00016674,2]
[323778430,1714287032620,-2131.68,0.00016715,2]
[323778431,1714287032632,-472.76,0.00016725,2]
[323778432,1714287032641,-472.76,0.0001677,2]
[323778433,1714287032651,-472.76,0.00016816,2]
[323778434,1714287032659,-472.76,0.00016862,2]
[323778435,1714287032669,-472.76,0.00016908,2]
[323778436,1714287032679,-8513.26,0.00016922,2]
[323778437,1714287032688,-472.76,0.00016954,2]
[323778438,1714287032698,-472.76,0.00017,2]
[323778439,1714287032708,-5017.33608813,0.00017,2]
[323778440,1714287032717,-150.0,0.00017033,2]
[323778441,1714287032726,-472.76,0.00017046,2]
[323778442,1714287032735,-472.76,0.00017091,2]
[323778443,1714287032744,-158.51,0.00017127,2]
[323778444,1714287032753,-472.76,0.00017137,2]
[323778445,1714287032763,-158.51,0.0001717,2]
[323778446,1714287032772,-472.76,0.00017183,2]
[323778447,1714287032781,-158.51,0.00017213,2]
[323778448,1714287032791,-472.76,0.00017229,2]
[323778449,1714287032800,-472.76,0.00017275,2]
[323778450,1714287032809,-5579.0,0.000173,2]
[323778451,1714287032819,-472.76,0.00017321,2]
[323778452,1714287032828,-183.71,0.00017333,2]
[323778453,1714287032837,-472.76,0.00017367,2]
[323778454,1714287032846,-270.3,0.00017386,2]
[323778455,1714287032855,-150.0,0.00017405,2]
[323778456,1714287032864,-472.76,0.00017412,2]
[323778457,1714287032873,-700.75,0.00017425,2]
[323778458,1714287032883,-164.01189131,0.00017432,2]
[323778459,1714287032894,-472.76,0.00017458,2]
[323778460,1714287032904,-472.76,0.00017504,2]
[323778461,1714287032913,-472.76,0.0001755,2]
[323778462,1714287032922,-472.76,0.00017596,2]
[323778463,1714287032931,-150.0,0.00017639,2]
[323778464,1714287032940,-150.0,0.00017756,2]
[323778465,1714287032950,-1801.70548766,0.00017873,2]
[323778466,1714287032960,-166.561615,0.00017874,2]
[323778467,1714287032970,-1320.966596,0.00017874,2]
[323778468,1714287032979,-161.590448,0.00017874,2]
[323778469,1714287032989,-7248.851849,0.00017874,2]
[323778470,1714287033002,-161.590448,0.00017874,2]
[323778471,1714287033011,-166.561614,0.00017874,2]
[323778472,1714287033022,-2481.258986,0.00017874,2]
[323778473,1714287033032,-682.794159,0.00017874,2]
[323778474,1714287033041,-7248.85185,0.00017874,2]
[323778475,1714287033051,-161.590448,0.00017874,2]
[323778476,1714287033062,-166.561614,0.00017874,2]
[323778477,1714287033072,-2481.258986,0.00017874,2]
[323778478,1714287033082,-682.794158,0.00017874,2]
[323778479,1714287033092,-7248.85185,0.00017874,2]
[323778480,1714287033101,-2481.258986,0.00017874,2]
[323778481,1714287033110,-682.794158,0.00017874,2]
[323778482,1714287033120,-161.590448,0.00017874,2]
[323778483,1714287033129,-166.561614,0.00017874,2]
[323778484,1714287033139,-152.286841,0.00017874,2]
[323778485,1714287033149,-200.0,0.00017874,2]
[323778486,1714287033158,-150.0,0.00017937,2]
[323778487,1714287033167,-166.74,0.00017971,2]
[323778488,1714287033177,-3072.30580356,0.00018,2]
[323778489,1714287033186,-477.76,0.00018093,2]
[323778490,1714287033196,-1320.966596,0.00018098,2]
[323778491,1714287033207,-7248.851849,0.00018098,2]
[323778492,1714287033217,-2481.258986,0.00018098,2]
[323778493,1714287033413,-682.794159,0.00018098,2]
[323778494,1714287033462,-7248.85185,0.00018098,2]
[323778495,1714287033472,-2481.258986,0.00018098,2]
[323778496,1714287033481,-682.794158,0.00018098,2]
[323778497,1714287033491,-7248.85185,0.00018098,2]
[323778498,1714287033501,-2481.258986,0.00018098,2]
[323778499,1714287033511,-682.794158,0.00018098,2]
[323778500,1714287033521,-152.286841,0.00018098,2]
[323778501,1714287033530,-166.93,0.00018284,2]
[323778502,1714287033540,-167.51,0.0001832,2]
[323778503,1714287033550,-161.590448,0.00018321,2]
[323778504,1714287033560,-161.590448,0.00018321,2]
[323778505,1714287033569,-161.590448,0.00018321,2]
[323778506,1714287033578,-161.590448,0.00018321,2]
[323778507,1714287033587,-1320.966596,0.00018321,2]
[323778508,1714287033596,-7248.851849,0.00018321,2]
[323778509,1714287033605,-2481.258986,0.00018321,2]
[323778510,1714287033615,-682.794159,0.00018321,2]
[323778511,1714287033624,-7248.85185,0.00018321,2]
[323778512,1714287033638,-2481.258986,0.00018321,2]
[323778513,1714287033647,-682.794158,0.00018321,2]
[323778514,1714287033657,-7248.85185,0.00018321,2]
[323778515,1714287033668,-2481.258986,0.00018321,2]
[323778516,1714287033680,-682.794158,0.00018321,2]
[323778517,1714287033689,-152.286841,0.00018321,2]
[323778518,1714287033700,-1000.0,0.00018452,2]
[323778519,1714287033710,-1320.966596,0.00018544,2]
[323778520,1714287033719,-7248.851849,0.00018544,2]
[323778521,1714287033729,-2481.258986,0.00018544,2]
[323778522,1714287033739,-682.794159,0.00018544,2]
[323778523,1714287033748,-7248.85185,0.00018544,2]
[323778524,1714287033757,-2481.258986,0.00018544,2]
[323778525,1714287033767,-682.794158,0.00018544,2]
[323778526,1714287033776,-7248.85185,0.00018544,2]
[323778527,1714287033785,-2481.258986,0.00018544,2]
[323778528,1714287033794,-682.794158,0.00018544,2]
[323778529,1714287033804,-152.286841,0.00018544,2]
[323778530,1714287033813,-896.18,0.00018758,2]
[323778531,1714287033822,-4918.99,0.00018767,2]
[323778532,1714287033831,-161.590448,0.00018768,2]
[323778533,1714287033841,-161.590448,0.00018768,2]
[323778534,1714287033850,-161.590448,0.00018768,2]
[323778535,1714287033860,-161.590448,0.00018768,2]
[323778536,1714287033869,-166.561615,0.00018768,2]
[323778537,1714287033879,-166.561614,0.00018768,2]
[323778538,1714287033889,-166.561614,0.00018768,2]
[323778539,1714287033899,-166.561614,0.00018768,2]
[323778540,1714287033909,-1320.966596,0.00018768,2]
[323778541,1714287033920,-7248.851849,0.00018768,2]
[323778542,1714287033930,-2481.258986,0.00018768,2]
[323778543,1714287033940,-682.794159,0.00018768,2]
[323778544,1714287033950,-7248.85185,0.00018768,2]
[323778545,1714287033960,-2481.258986,0.00018768,2]
[323778546,1714287033970,-682.794158,0.00018768,2]
[323778547,1714287033979,-7248.85185,0.00018768,2]
[323778548,1714287033989,-2481.258986,0.00018768,2]
[323778549,1714287033998,-682.794158,0.00018768,2]
[323778550,1714287034007,-152.286841,0.00018768,2]
[323778551,1714287034016,-349.03,0.00018802,2]
[323778552,1714287034026,-150.0,0.00018879,2]
[323778553,1714287034036,-952.7,0.00018916,2]
[323778554,1714287034045,-1396.39,0.00019,2]
[323778555,1714287034055,-1203.0,0.00019,4]
[323778556,1714287034064,-1002.0,0.00019,4]
[323778557,1714287034073,-383.0,0.00019,4]
[323778558,1714287034083,-62394.0,0.00019,2]
[323778559,1714287034092,-309.40800931,0.00019077,2]
[323778560,1714287034102,-12875.03762592,0.00019078,2]
[323778561,1714287034112,-177.18201028,0.00019078,2]
[323778562,1714287034121,-183.63029456,0.00019078,2]
[323778563,1714287034130,-270.47989436,0.00019078,2]
[323778564,1714287034140,-6356.03980483,0.00019078,2]
[323778565,1714287034153,-1629.76586371,0.00019078,2]
[323778566,1714287034165,-2014.19433146,0.00019078,2]
[323778567,1714287034174,-1000.0,0.00019078,2]
[323778568,1714287034183,-155.74635696,0.00019096,2]
[323778569,1714287034193,-558.78782629,0.00019158,2]
[323778570,1714287034203,-896.18,0.00019167,2]
[323778571,1714287034212,-155.15597948,0.00019168,2]
[323778572,1714287034221,-896.18,0.00019168,2]
[323778573,1714287034230,-162.14721555,0.00019175,2]
[323778574,1714287034239,-404.8762609,0.00019175,2]
[323778575,1714287034249,-4326.46195402,0.00019175,2]
[323778576,1714287034270,-673.53804598,0.00019175,2]
[323778577,1714287034279,-161.02195853,0.00019175,2]
[323778578,1714287034289,-361.48980486,0.00019175,2]
[323778579,1714287034298,-236.43039764,0.00019175,2]
[323778580,1714287034307,-263.95861987,0.00019175,2]
[323778581,1714287034317,-896.13803831,0.00019175,2]
[323778582,1714287034329,-2879.20197185,0.00019175,2]
[323778583,1714287034339,-156.85864907,0.00019175,2]
[323778584,1714287034349,-544.46935149,0.00019175,2]
[323778585,1714287034358,-193.91704369,0.00019175,2]
[323778586,1714287034369,-781.07343554,0.00019175,2]
[323778587,1714287034378,-155.27620171,0.00019175,2]
[323778588,1714287034387,-315.9317787,0.00019175,2]
[323778589,1714287034397,-156.35449354,0.00019175,2]
[323778590,1714287034407,-237.17351593,0.00019175,2]
[323778591,1714287034419,-155.45749735,0.00019175,2]
[323778592,1714287034429,-155.37869957,0.00019175,2]
[323778593,1714287034439,-155.64216315,0.00019175,2]
[323778594,1714287034449,-319.46519841,0.00019175,2]
[323778595,1714287034460,-1425.24324142,0.00019175,2]
[323778596,1714287034469,-1575.21221497,0.00019175,2]
[323778631,1714287038902,-1614.2,0.00019078,2]
[323778632,1714287038913,-61913.00000005,0.00019078,2]
[323778633,1714287038925,-138458.70228774,0.00019078,2]
[323778634,1714287038935,-1549.66936743,0.00019175,2]
[323778635,1714287038944,-2327.94533073,0.00019175,2]
[323778636,1714287038955,-214.61583145,0.00019175,2]
[323778637,1714287038964,-329.48874457,0.00019175,2]
[323778638,1714287038974,-323.0243529,0.00019176,2]
[323778639,1714287038983,-4918.99,0.00019176,2]
[323778640,1714287038993,-160869.14942419,0.00019177,2]
[323778641,1714287039002,-3000.0,0.00019177,2]
[323778642,1714287039011,-924.59513124,0.00019177,2]
[323778643,1714287039022,-3285.175,0.00019177,2]
[323778644,1714287039033,-709.21986876,0.00019177,2]
[323778645,1714287039042,-3500.52213124,0.00019177,2]
[323778646,1714287039053,-1418.46786876,0.00019177,2]
[323778647,1714287039063,-4918.99,0.00019177,2]
[323778648,1714287039072,-4918.99,0.00019177,2]
[323778649,1714287039081,-2978.55100503,0.00019177,2]
[323778650,1714287039093,-1940.43899497,0.00019177,2]
[323778651,1714287039102,-4918.99,0.00019177,2]
[323778652,1714287039111,-4918.99,0.00019177,2]
[323778653,1714287039121,-621.58100503,0.00019177,2]
[323778654,1714287039132,-4297.40899497,0.00019177,2]
[323778655,1714287039141,-2806.12177704,0.00019177,2]
[323778656,1714287039154,-2112.86822296,0.00019177,2]
[323778657,1714287039163,-4663.10033997,0.00019177,2]
[323778680,1714287039882,-255.88966003,0.00019177,2]
[323778681,1714287039892,-4918.99,0.00019177,2]
[323778682,1714287039902,-3967.50375364,0.00019177,2]
[323778683,1714287039990,-683.33006705,0.00019177,2]
[323778684,1714287040049,-268.15617931,0.00019177,2]
[323778685,1714287040058,-1332.61728869,0.00019177,2]
[323778686,1714287040070,-880.188012,0.00019177,2]
[323778687,1714287040157,-455.34,0.00019177,2]
[323778688,1714287040321,-2250.84469931,0.00019177,2]
[323778689,1714287040330,-741.0,0.00019178,2]
[323778690,1714287040340,-3558.73774548,0.00019178,2]
[323778716,1714287043104,-251.74141407,0.00019176,2]
[323778717,1714287043114,-3468.25858593,0.00019178,2]
[323778718,1714287043176,-471.441,0.00019178,2]
[323778719,1714287043286,-906.0,0.00019178,2]
[323778720,1714287043343,-403.80172333,0.00019178,2]
[323778731,1714287046058,-337.08969517,0.000149,2]
[323778732,1714287046071,-2603.56332289,0.000149,2]
[323778733,1714287046108,-281.00881241,0.000149,2]
[323778734,1714287046158,-3484.60869398,0.000149,2]
[323778735,1714287046169,-1491.54175762,0.00019078,2]
[323778736,1714287046178,-518.31701858,0.00019176,2]
[323778737,1714287046188,-201.22499233,0.00019177,2]
[323778738,1714287046198,-12404.30753849,0.00019178,2]
[323778806,1714287203312,117194.58494184,0.000251,120]
[323778807,1714287233424,391622.35,0.00025,120]
[323778808,1714287266294,200.0,0.00011,2]
[323778811,1714287323767,257.52440593,0.00011,2]
[323778812,1714287338217,405.68474421,0.00011,2]
[323778850,1714288232790,-370.19548805,0.00012345,2]
[323778851,1714288232799,-155.81474439,0.00012346,2]
[323778852,1714288232842,-38.68006506,0.00012346,2]
[323778853,1714288232851,-310.09425059,0.00012346,2]
[323778854,1714288232861,-83.37611311,0.00012347,2]
[323778855,1714288232910,-76.57011636,0.00012347,2]
[323778856,1714288232920,-349.59,0.00012454,2]
[323778857,1714288232929,-114.72159762,0.000129,2]
[323778858,1714288232960,-45.22463185,0.000129,2]
[323778859,1714288232969,-150.25547053,0.000129,2]
[323778860,1714288232979,-172.5142018,0.000129,2]
[323778861,1714288232991,-4.81569582,0.00012989,2]
[323778862,1714288233002,-13226.01023244,0.00012989,2]
[323778863,1714288233014,-500.0,0.00012989,2]
[323778864,1714288233053,-380.03886704,0.00012989,2]
[323778865,1714288233068,-5419.04406923,0.00012989,2]
[323778866,1714288233078,-181.79868548,0.0001299,2]
[323778867,1714288233087,-627.33,0.0001299,2]
[323778868,1714288233097,-627.33,0.0001299,2]
[323778869,1714288233106,-627.33,0.0001299,2]
[323778870,1714288233115,-627.33,0.0001299,2]
[323778871,1714288233124,-627.33,0.0001299,2]
[323778872,1714288233133,-749.70504623,0.00012998,2]
[323778873,1714288233142,-329.48874457,0.00012998,2]
[323778874,1714288233152,-2327.94533073,0.00012998,2]
[323778875,1714288233161,-214.61583145,0.00012998,2]
[323778876,1714288233172,-404.8762609,0.00012999,2]
[323778877,1714288233182,-5000.0,0.00012999,2]
[323778878,1714288233191,-231.95,0.00012999,2]
[323778879,1714288233201,-1072415.20409917,0.00013,2]
[323778880,1714288233210,-470.07992364,0.00013,2]
[323778881,1714288233219,-11896.64954984,0.000135,2]
[323778882,1714288233228,-196.05073833,0.000136,2]
[323778883,1714288233238,-286.65,0.00013621,2]
[323778884,1714288233248,-2361.76986435,0.000138,2]
[323778885,1714288233257,-183.71,0.00013842,2]
[323778886,1714288233266,-481.59,0.00013855,2]
[323778887,1714288233276,-289.78,0.00013897,10]
[323778888,1714288233286,-154.27,0.0001391,2]
[323778889,1714288233296,-172.27,0.0001404,2]
[323778890,1714288233306,-200.0,0.00014083,2]
[323778891,1714288233315,-11896.64954977,0.00014144,2]
[323778892,1714288233325,-500.0,0.00014161,2]
[323778893,1714288233335,-154.27,0.00014273,2]
[323778894,1714288233344,-499.99,0.00014354,2]
[323778895,1714288233354,-150.25547051,0.00014614,2]
[323778896,1714288233365,-154.27,0.00014635,2]
[323778897,1714288233375,-1008.3225052,0.0001465,2]
[323778898,1714288233385,-349.59,0.00014718,2]
[323778899,1714288233394,-1835.75,0.00014722,2]
[323778900,1714288233403,-11896.64954977,0.00014788,2]
[323778901,1714288233412,-4889.8,0.00014899,2]
[323778902,1714288233422,-3505.00972487,0.00015,2]
[323778903,1714288233431,-724.9,0.00015301,2]
[323778904,1714288233440,-286.65,0.00015324,2]
[323778905,1714288233450,-11896.64954977,0.00015432,2]
[323778906,1714288233459,-167.51,0.00015497,2]
[323778907,1714288233468,-11896.64954977,0.00016076,2]
[323778908,1714288233478,-150.25547051,0.00016328,2]
[323778909,1714288233487,-627.33,0.00016418,2]
[323778910,1714288233496,-140580.00127524,0.00016428,2]
[323778911,1714288233506,-627.33,0.00016428,2]
[323778912,1714288233515,-627.33,0.00016428,2]
[323778913,1714288233525,-500.0,0.00016438,2]
[323778914,1714288233536,-500.0,0.00016438,2]
[323778915,1714288233545,-500.0,0.00016438,2]
[323778916,1714288233555,-500.0,0.00016438,2]
[323778917,1714288233564,-500.0,0.00016438,2]
[323778918,1714288233574,-552.32,0.00016438,2]
[323778919,1714288233583,-1285.47,0.00016438,2]
[323778920,1714288233592,-500.0,0.00016438,2]
[323778921,1714288233601,-500.0,0.00016438,2]
[323778922,1714288233610,-1146.61,0.00016438,2]
[323778923,1714288233620,-573.89,0.00016438,2]
[323778924,1714288233629,-10000.0,0.00016438,2]
[323778925,1714288233638,-10000.0,0.00016438,2]
[323778926,1714288233647,-10000.0,0.00016438,2]
[323778927,1714288233656,-10000.0,0.00016438,2]
[323778928,1714288233665,-10000.0,0.00016438,2]
[323778929,1714288233675,-500.0,0.00016438,2]
[323778930,1714288233684,-500.0,0.00016438,2]
[323778931,1714288233693,-500.0,0.00016438,2]
[323778932,1714288233702,-500.0,0.00016438,2]
[323778933,1714288233712,-500.0,0.00016438,2]
[323778934,1714288233721,-500.0,0.00016438,2]
[323778935,1714288233730,-524.08530169,0.00016438,2]
[323778936,1714288233740,-509.84066682,0.00016438,2]
[323778937,1714288233750,-500.0,0.00016438,2]
[323778938,1714288233759,-500.0,0.00016438,2]
[323778939,1714288233768,-500.0,0.00016438,2]
[323778940,1714288233777,-500.0,0.00016438,2]
[323778941,1714288233788,-500.0,0.00016438,2]
[323778942,1714288233797,-500.0,0.00016438,2]
[323778943,1714288233805,-500.0,0.00016438,2]
[323778944,1714288233815,-565.91,0.00016438,2]
[323778945,1714288233824,-500.0,0.00016438,2]
[323778946,1714288233833,-626.03,0.00016438,2]
[323778947,1714288233843,-500.0,0.00016438,2]
[323778948,1714288233852,-500.0,0.00016438,2]
[323778949,1714288233861,-500.0,0.00016438,2]
[323778950,1714288233871,-500.0,0.00016438,2]
[323778951,1714288233880,-500.0,0.00016438,2]
[323778952,1714288233889,-867.33,0.00016438,2]
[323778953,1714288233898,-500.0,0.00016438,2]
[323778954,1714288233908,-705.59,0.00016438,2]
[323778955,1714288233918,-500.0,0.00016438,2]
[323778956,1714288233929,-500.0,0.00016438,2]
[323778957,1714288233941,-500.0,0.00016438,2]
[323778958,1714288233950,-1385.61,0.00016438,2]
[323778959,1714288233961,-505.42116692,0.00016438,2]
[323778960,1714288233970,-500.0,0.00016438,2]
[323778961,1714288233980,-500.0,0.00016438,2]
[323778962,1714288233991,-500.0,0.00016438,2]
[323778963,1714288234000,-500.0,0.00016438,2]
[323778964,1714288234009,-500.0,0.00016438,2]
[323778965,1714288234018,-500.0,0.00016438,2]
[323778966,1714288234027,-500.0,0.00016438,2]
[323778967,1714288234039,-1709.49,0.00016438,2]
[323778968,1714288234048,-500.12767653,0.00016438,2]
[323778969,1714288234057,-500.0,0.00016438,2]
[323778970,1714288234069,-500.0,0.00016438,2]
[323778971,1714288234078,-500.0,0.00016438,2]
[323778972,1714288234087,-500.0,0.00016438,2]
[323778973,1714288234096,-509.37183377,0.00016438,2]
[323778974,1714288234106,-1893.56,0.00016438,2]
[323778975,1714288234115,-500.0,0.00016438,2]
[323778976,1714288234124,-1523.55,0.00016438,2]
[323778977,1714288234134,-500.0,0.00016438,2]
[323778978,1714288234143,-500.0,0.00016438,2]
[323778979,1714288234152,-500.0,0.00016438,2]
[323778980,1714288234161,-500.0,0.00016438,2]
[323778981,1714288234171,-500.0,0.00016438,2]
[323778982,1714288234181,-500.0,0.00016438,2]
[323778983,1714288234190,-500.0,0.00016438,2]
[323778984,1714288234199,-500.0,0.00016438,2]
[323778985,1714288234209,-1251.41,0.00016438,2]
[323778986,1714288234219,-501.70292962,0.00016438,2]
[323778987,1714288234229,-500.0,0.00016438,2]
[323778988,1714288234238,-500.0,0.00016438,2]
[323778989,1714288234248,-500.0,0.00016438,2]
[323778990,1714288234257,-603.53,0.00016438,2]
[323778991,1714288234267,-500.0,0.00016438,2]
[323778992,1714288234276,-500.0,0.00016438,2]
[323778993,1714288234286,-500.0,0.00016438,2]
[323778994,1714288234295,-500.0,0.00016438,2]
[323778995,1714288234305,-1756.36,0.00016438,2]
[323778996,1714288234314,-500.0,0.00016438,2]
[323778997,1714288234324,-500.0,0.00016438,2]
[323778998,1714288234333,-500.0,0.00016438,2]
[323778999,1714288234343,-634.7,0.00016438,2]
[323779000,1714288234353,-500.0,0.00016438,2]
[323779001,1714288234362,-500.0,0.00016438,2]
[323779002,1714288234372,-500.0,0.00016438,2]
[323779003,1714288234381,-1685.87,0.00016438,2]
[323779004,1714288234391,-500.0,0.00016438,2]
[323779005,1714288234401,-500.0,0.00016438,2]
[323779006,1714288234410,-500.0,0.00016438,2]
[323779007,1714288234421,-500.0,0.00016438,2]
[323779008,1714288234431,-2460.72,0.00016438,2]
[323779009,1714288234441,-500.0,0.00016438,2]
[323779010,1714288234451,-556.08,0.00016438,2]
[323779011,1714288234461,-500.0,0.00016438,2]
[323779012,1714288234471,-1112.92,0.00016438,2]
[323779013,1714288234480,-500.0,0.00016438,2]
[323779014,1714288234489,-500.0,0.00016438,2]
[323779015,1714288234498,-621.45,0.00016438,2]
[323779016,1714288234508,-505.66803933,0.00016438,2]
[323779017,1714288234518,-500.0,0.00016438,2]
[323779018,1714288234528,-1086.21,0.00016438,2]
[323779019,1714288234539,-502.26667289,0.00016438,2]
[323779020,1714288234548,-795.62,0.00016438,2]